[Event "January 2 Early 2024"]
[Site "https://www.chess.com"]
[Date "2024.01.02"]
[Round "2"]
[White "Paravyan, David"]
[Black "Injac, Teodora"]
[Result "1-0"]
[Board "7"]
[TimeControl "180+1"]
[WhiteFideId "4194985"]
[BlackFideId "932400"]
[WhiteElo "3097"]
[BlackElo "2663"]
[WhiteTeam "FID"]
[BlackTeam "SRB"]
[WhiteClock "0:00:39"]
[BlackClock "0:00:03"]

1. e4 {[%clk 0:02:59]}  e5 {[%clk 0:03:00]} 2. Nf3 {[%clk 0:02:59]}  Nc6 {[%clk 0:03:00]} 3. Bc4 {[%clk 0:02:57]}  Bc5 {[%clk 0:03:00]} 4. d3 {[%clk 0:02:57]}  Nf6 {[%clk 0:03:01]} 5. Nc3 {[%clk 0:02:57]}  d6 {[%clk 0:02:59]} 6. Na4 {[%clk 0:02:57]}  Bb6 {[%clk 0:02:59]} 7. c3 {[%clk 0:02:56]}  h6 {[%clk 0:02:59]} 8. h3 {[%clk 0:02:56]}  Ne7 {[%clk 0:02:54]} 9. O-O {[%clk 0:02:52]}  Ng6 {[%clk 0:02:53]} 10. Re1 {[%clk 0:02:52]}  O-O {[%clk 0:02:53]} 11. Nxb6 {[%clk 0:02:52]}  axb6 {[%clk 0:02:53]} 12. a4 {[%clk 0:02:52]}  Be6 {[%clk 0:02:52]} 13. Bxe6 {[%clk 0:02:51]}  fxe6 {[%clk 0:02:53]} 14. b4 {[%clk 0:02:50]}  Qe8 {[%clk 0:02:48]} 15. Ra2 {[%clk 0:02:46]}  Nh5 {[%clk 0:02:46]} 16. g3 {[%clk 0:02:43]}  Nf6 {[%clk 0:02:43]} 17. c4 {[%clk 0:02:38]}  Rf7 {[%clk 0:02:36]} 18. Be3 {[%clk 0:02:35]}  Qd7 {[%clk 0:02:31]} 19. Kg2 {[%clk 0:02:34]}  Raf8 {[%clk 0:02:30]} 20. Nh2 {[%clk 0:02:32]}  d5 {[%clk 0:02:19]} 21. Ng4 {[%clk 0:02:27]}  Nxg4 {[%clk 0:02:04]} 22. Qxg4 {[%clk 0:02:25]}  Kh7 {[%clk 0:01:54]} 23. cxd5 {[%clk 0:02:23]}  exd5 {[%clk 0:01:54]} 24. Qxd7 {[%clk 0:02:22]}  Rxd7 {[%clk 0:01:55]} 25. exd5 {[%clk 0:02:13]}  Rxd5 {[%clk 0:01:54]} 26. Rc1 {[%clk 0:02:13]}  c6 {[%clk 0:01:43]} 27. Bxb6 {[%clk 0:02:02]}  Rxd3 {[%clk 0:01:42]} 28. a5 {[%clk 0:02:00]}  Ra8 {[%clk 0:01:31]} 29. Rb2 {[%clk 0:01:42]}  Ne7 {[%clk 0:01:26]} 30. b5 {[%clk 0:01:36]}  cxb5 {[%clk 0:01:25]} 31. Rc7 {[%clk 0:01:32]}  Nd5 {[%clk 0:01:20]} 32. Rxb7 {[%clk 0:01:31]}  b4 {[%clk 0:01:17]} 33. Bc5 {[%clk 0:01:15]}  b3 {[%clk 0:00:32]} 34. Bd6 {[%clk 0:00:59]}  Rxa5 {[%clk 0:00:14]} 35. Bf8 {[%clk 0:00:50]}  Ra2 {[%clk 0:00:12]} 36. Rxg7+ {[%clk 0:00:41]}  Kh8 {[%clk 0:00:12]} 37. Rxa2 {[%clk 0:00:42]}  bxa2 {[%clk 0:00:12]} 38. Ra7 {[%clk 0:00:42]}  Rd2 {[%clk 0:00:02]} 39. Bxh6 {[%clk 0:00:40]}  Kg8 {[%clk 0:00:03]} 40. Bxd2 {[%clk 0:00:39]} 1-0

[Event "January 2 Early 2024"]
[Site "https://www.chess.com"]
[Date "2024.01.02"]
[Round "2"]
[White "Guerra Tulcan, Lenin"]
[Black "So, Wesley"]
[Result "0-1"]
[Board "8"]
[TimeControl "180+1"]
[WhiteFideId "3601382"]
[BlackFideId "5202213"]
[WhiteElo "2662"]
[BlackElo "3083"]
[WhiteTeam "ECU"]
[BlackTeam "USA"]
[WhiteClock "0:00:00"]
[BlackClock "0:00:15"]

1. e4 {[%clk 0:03:00]}  c5 {[%clk 0:02:58]} 2. Nf3 {[%clk 0:03:00]}  d6 {[%clk 0:02:54]} 3. b4 {[%clk 0:02:59]}  cxb4 {[%clk 0:02:53]} 4. a3 {[%clk 0:03:00]}  bxa3 {[%clk 0:02:53]} 5. Bxa3 {[%clk 0:03:00]}  Nf6 {[%clk 0:02:49]} 6. Bd3 {[%clk 0:03:00]}  g6 {[%clk 0:02:48]} 7. O-O {[%clk 0:03:01]}  Bg7 {[%clk 0:02:49]} 8. c3 {[%clk 0:03:01]}  O-O {[%clk 0:02:48]} 9. Re1 {[%clk 0:03:00]}  b6 {[%clk 0:02:44]} 10. Bc2 {[%clk 0:03:00]}  Bb7 {[%clk 0:02:44]} 11. d4 {[%clk 0:03:00]}  Qc7 {[%clk 0:02:36]} 12. h3 {[%clk 0:02:57]}  Rc8 {[%clk 0:02:21]} 13. e5 {[%clk 0:02:26]}  dxe5 {[%clk 0:02:22]} 14. dxe5 {[%clk 0:02:27]}  Ne8 {[%clk 0:02:06]} 15. e6 {[%clk 0:02:25]}  f5 {[%clk 0:02:03]} 16. Ba4 {[%clk 0:02:13]}  Bc6 {[%clk 0:01:58]} 17. Bb3 {[%clk 0:02:04]}  Rd8 {[%clk 0:01:53]} 18. Nd4 {[%clk 0:02:03]}  Bd5 {[%clk 0:01:38]} 19. Bxd5 {[%clk 0:01:53]}  Rxd5 {[%clk 0:01:39]} 20. Qf3 {[%clk 0:01:54]}  Nf6 {[%clk 0:01:39]} 21. Nd2 {[%clk 0:01:49]}  a6 {[%clk 0:01:06]} 22. Rad1 {[%clk 0:01:25]}  Ra7 {[%clk 0:00:59]} 23. Bb2 {[%clk 0:01:00]}  b5 {[%clk 0:00:57]} 24. c4 {[%clk 0:00:56]}  bxc4 {[%clk 0:00:56]} 25. Rc1 {[%clk 0:00:56]}  Qd8 {[%clk 0:00:44]} 26. Rxc4 {[%clk 0:00:52]}  Rc7 {[%clk 0:00:44]} 27. Rec1 {[%clk 0:00:52]}  Rxc4 {[%clk 0:00:44]} 28. Rxc4 {[%clk 0:00:53]}  Ne4 {[%clk 0:00:35]} 29. Nxe4 {[%clk 0:00:39]}  Bxd4 {[%clk 0:00:35]} 30. Nc3 {[%clk 0:00:17]}  Rd6 {[%clk 0:00:23]} 31. Qe2 {[%clk 0:00:17]}  Bf6 {[%clk 0:00:20]} 32. Ba3 {[%clk 0:00:16]}  Rd4 {[%clk 0:00:19]} 33. g3 {[%clk 0:00:10]}  Kg7 {[%clk 0:00:18]} 34. Kg2 {[%clk 0:00:10]}  Rxc4 {[%clk 0:00:17]} 35. Qxc4 {[%clk 0:00:10]}  Qa5 {[%clk 0:00:16]} 36. Bb4 {[%clk 0:00:10]}  Qb6 {[%clk 0:00:15]} 37. Nd5 {[%clk 0:00:08]}  Qxe6 {[%clk 0:00:15]} 38. Ne3 {[%clk 0:00:06]}  Qxc4 {[%clk 0:00:14]} 39. Nxc4 {[%clk 0:00:07]}  Nc6 {[%clk 0:00:15]} 40. Bc5 {[%clk 0:00:07]}  Kf7 {[%clk 0:00:15]} 41. f4 {[%clk 0:00:07]}  Ke6 {[%clk 0:00:15]} 42. Kf3 {[%clk 0:00:00]}  Kd5 {[%clk 0:00:15]} 0-1

[Event "January 2 Early 2024"]
[Site "https://www.chess.com"]
[Date "2024.01.02"]
[Round "2"]
[White "Lizak, Peter"]
[Black "Sarana, Alexey"]
[Result "0-1"]
[Board "14"]
[TimeControl "180+1"]
[WhiteFideId "731595"]
[BlackFideId "24133795"]
[WhiteElo "2653"]
[BlackElo "3034"]
[WhiteTeam "HUN"]
[BlackTeam "SRB"]
[WhiteClock "0:00:00"]
[BlackClock "0:01:52"]

1. d4 {[%clk 0:03:00]}  Nf6 {[%clk 0:02:58]} 2. Nc3 {[%clk 0:03:01]}  d5 {[%clk 0:02:56]} 3. Bf4 {[%clk 0:03:02]}  e6 {[%clk 0:02:55]} 4. e3 {[%clk 0:03:02]}  Bb4 {[%clk 0:02:52]} 5. a3 {[%clk 0:02:59]}  Ba5 {[%clk 0:02:51]} 6. Bd3 {[%clk 0:02:46]}  Nbd7 {[%clk 0:02:49]} 7. b4 {[%clk 0:02:45]}  Bb6 {[%clk 0:02:49]} 8. Na4 {[%clk 0:02:42]}  c6 {[%clk 0:02:42]} 9. Nxb6 {[%clk 0:02:18]}  axb6 {[%clk 0:02:43]} 10. c4 {[%clk 0:02:17]}  Nf8 {[%clk 0:02:42]} 11. Nf3 {[%clk 0:02:15]}  Nh5 {[%clk 0:02:40]} 12. Bg5 {[%clk 0:02:02]}  f6 {[%clk 0:02:38]} 13. Bh4 {[%clk 0:02:01]}  Ng6 {[%clk 0:02:32]} 14. Bg3 {[%clk 0:01:58]}  Nxg3 {[%clk 0:02:26]} 15. hxg3 {[%clk 0:01:58]}  O-O {[%clk 0:02:24]} 16. Rxh7 {[%clk 0:00:52]}  Kxh7 {[%clk 0:02:23]} 17. Nh4 {[%clk 0:00:52]}  f5 {[%clk 0:02:11]} 18. Qh5+ {[%clk 0:00:52]}  Kg8 {[%clk 0:02:12]} 19. Nxg6 {[%clk 0:00:53]}  Qe8 {[%clk 0:02:00]} 20. Qh8+ {[%clk 0:00:48]}  Kf7 {[%clk 0:02:00]} 21. Qxf8+ {[%clk 0:00:36]}  Qxf8 {[%clk 0:02:01]} 22. Nxf8 {[%clk 0:00:37]}  Kxf8 {[%clk 0:02:01]} 23. Kd2 {[%clk 0:00:33]}  Kf7 {[%clk 0:02:01]} 24. Kc3 {[%clk 0:00:31]}  Kf6 {[%clk 0:02:01]} 25. Kb2 {[%clk 0:00:30]}  Bd7 {[%clk 0:02:01]} 26. Rh1 {[%clk 0:00:30]}  Rc8 {[%clk 0:01:59]} 27. c5 {[%clk 0:00:27]}  bxc5 {[%clk 0:01:56]} 28. bxc5 {[%clk 0:00:26]}  Ra8 {[%clk 0:01:56]} 29. Bc2 {[%clk 0:00:25]}  e5 {[%clk 0:01:55]} 30. dxe5+ {[%clk 0:00:14]}  Kxe5 {[%clk 0:01:55]} 31. Rh7 {[%clk 0:00:11]}  Kf6 {[%clk 0:01:55]} 32. Rh4 {[%clk 0:00:08]}  Ra5 {[%clk 0:01:54]} 33. Rb4 {[%clk 0:00:08]}  Bc8 {[%clk 0:01:55]} 34. g4 {[%clk 0:00:08]}  fxg4 {[%clk 0:01:53]} 35. Rf4+ {[%clk 0:00:07]}  Ke7 {[%clk 0:01:54]} 36. e4 {[%clk 0:00:05]}  Rb5+ {[%clk 0:01:52]} 37. Kc1 {[%clk 0:00:00]}  g5 {[%clk 0:01:52]} 0-1

[Event "January 2 Early 2024"]
[Site "https://www.chess.com"]
[Date "2024.01.02"]
[Round "2"]
[White "Mamedyarov, Shakhriyar"]
[Black "Cordoba Roa, Angel Gabriel"]
[Result "1-0"]
[Board "15"]
[TimeControl "180+1"]
[WhiteFideId "13401319"]
[BlackFideId "3957624"]
[WhiteElo "3033"]
[BlackElo "2653"]
[WhiteTeam "AZE"]
[BlackTeam "COL"]
[WhiteClock "0:01:03"]
[BlackClock "0:00:21"]

1. d4 {[%clk 0:03:00]}  Nf6 {[%clk 0:02:59]} 2. Bg5 {[%clk 0:03:00]}  e6 {[%clk 0:02:58]} 3. e4 {[%clk 0:03:00]}  h6 {[%clk 0:02:58]} 4. Bxf6 {[%clk 0:03:01]}  Qxf6 {[%clk 0:02:59]} 5. Nc3 {[%clk 0:03:01]}  Bb4 {[%clk 0:02:57]} 6. Qd3 {[%clk 0:03:02]}  c5 {[%clk 0:02:57]} 7. e5 {[%clk 0:02:58]}  Qd8 {[%clk 0:02:54]} 8. d5 {[%clk 0:02:44]}  exd5 {[%clk 0:02:55]} 9. Qxd5 {[%clk 0:02:43]}  Nc6 {[%clk 0:02:53]} 10. Ne2 {[%clk 0:02:40]}  O-O {[%clk 0:02:29]} 11. f4 {[%clk 0:02:39]}  Re8 {[%clk 0:02:19]} 12. O-O-O {[%clk 0:02:37]}  d6 {[%clk 0:02:11]} 13. Qxd6 {[%clk 0:02:29]}  Qa5 {[%clk 0:02:07]} 14. Qd3 {[%clk 0:02:18]}  Be6 {[%clk 0:02:05]} 15. Qb5 {[%clk 0:02:16]}  Rad8 {[%clk 0:01:30]} 16. Qxa5 {[%clk 0:02:13]}  Bxa5 {[%clk 0:01:31]} 17. Rxd8 {[%clk 0:02:05]}  Rxd8 {[%clk 0:01:30]} 18. a3 {[%clk 0:02:04]}  g5 {[%clk 0:01:27]} 19. g3 {[%clk 0:02:00]}  Nd4 {[%clk 0:01:26]} 20. Ne4 {[%clk 0:01:43]}  Bf5 {[%clk 0:00:56]} 21. Nf6+ {[%clk 0:01:36]}  Kg7 {[%clk 0:00:54]} 22. Nxd4 {[%clk 0:01:37]}  Rxd4 {[%clk 0:00:55]} 23. c3 {[%clk 0:01:36]}  Rd8 {[%clk 0:00:47]} 24. Bg2 {[%clk 0:01:34]}  b5 {[%clk 0:00:47]} 25. Be4 {[%clk 0:01:34]}  Be6 {[%clk 0:00:42]} 26. Rd1 {[%clk 0:01:29]}  Rc8 {[%clk 0:00:40]} 27. f5 {[%clk 0:01:22]}  Bb3 {[%clk 0:00:39]} 28. Rd7 {[%clk 0:01:23]}  b4 {[%clk 0:00:40]} 29. Bd5 {[%clk 0:01:12]}  Bxd5 {[%clk 0:00:33]} 30. Nxd5 {[%clk 0:01:13]}  bxa3 {[%clk 0:00:24]} 31. bxa3 {[%clk 0:01:13]}  Rd8 {[%clk 0:00:24]} 32. Rxd8 {[%clk 0:01:06]}  Bxd8 {[%clk 0:00:25]} 33. Kd2 {[%clk 0:01:06]}  c4 {[%clk 0:00:26]} 34. Ke3 {[%clk 0:01:06]}  g4 {[%clk 0:00:22]} 35. Kd4 {[%clk 0:01:06]}  Bg5 {[%clk 0:00:22]} 36. Kxc4 {[%clk 0:01:06]}  Bd2 {[%clk 0:00:23]} 37. Kb5 {[%clk 0:01:03]}  Be1 {[%clk 0:00:23]} 38. c4 {[%clk 0:01:03]}  Kf8 {[%clk 0:00:24]} 39. c5 {[%clk 0:01:03]}  Ke8 {[%clk 0:00:24]} 40. c6 {[%clk 0:01:04]}  Kd8 {[%clk 0:00:25]} 41. c7+ {[%clk 0:01:03]}  Kc8 {[%clk 0:00:21]} 42. Kc6 {[%clk 0:01:03]} 1-0

[Event "January 2 Early 2024"]
[Site "https://www.chess.com"]
[Date "2024.01.02"]
[Round "2"]
[White "Jakubowski, Krzysztof"]
[Black "Xiong, Jeffery"]
[Result "0-1"]
[Board "17"]
[TimeControl "180+1"]
[WhiteFideId "1112848"]
[BlackFideId "2047640"]
[WhiteElo "2652"]
[BlackElo "3025"]
[WhiteTeam "POL"]
[BlackTeam "USA"]
[WhiteClock "0:00:00"]
[BlackClock "0:00:29"]

1. e4 {[%clk 0:03:00]}  c5 {[%clk 0:02:59]} 2. Nf3 {[%clk 0:03:00]}  d6 {[%clk 0:02:59]} 3. d4 {[%clk 0:03:00]}  cxd4 {[%clk 0:03:00]} 4. Nxd4 {[%clk 0:03:00]}  Nf6 {[%clk 0:03:00]} 5. Nc3 {[%clk 0:02:59]}  a6 {[%clk 0:03:01]} 6. h4 {[%clk 0:02:59]}  Nbd7 {[%clk 0:02:52]} 7. g4 {[%clk 0:02:49]}  h6 {[%clk 0:02:37]} 8. Rg1 {[%clk 0:02:40]}  g6 {[%clk 0:02:27]} 9. Be3 {[%clk 0:02:14]}  Bg7 {[%clk 0:02:05]} 10. Qd2 {[%clk 0:01:57]}  b5 {[%clk 0:01:55]} 11. f3 {[%clk 0:01:47]}  Bb7 {[%clk 0:01:55]} 12. O-O-O {[%clk 0:01:40]}  Nb6 {[%clk 0:01:54]} 13. a3 {[%clk 0:01:30]}  Rc8 {[%clk 0:01:53]} 14. Kb1 {[%clk 0:01:30]}  Nfd7 {[%clk 0:01:49]} 15. f4 {[%clk 0:01:21]}  Nc4 {[%clk 0:01:48]} 16. Bxc4 {[%clk 0:01:20]}  Rxc4 {[%clk 0:01:48]} 17. h5 {[%clk 0:01:17]}  Nc5 {[%clk 0:01:27]} 18. hxg6 {[%clk 0:01:15]}  Nxe4 {[%clk 0:01:27]} 19. gxf7+ {[%clk 0:01:11]}  Kxf7 {[%clk 0:01:28]} 20. Nxe4 {[%clk 0:01:10]}  Bxe4 {[%clk 0:01:29]} 21. Ka1 {[%clk 0:00:59]}  Qd7 {[%clk 0:01:24]} 22. c3 {[%clk 0:00:59]}  a5 {[%clk 0:01:22]} 23. Qe2 {[%clk 0:00:55]}  d5 {[%clk 0:01:16]} 24. g5 {[%clk 0:00:54]}  b4 {[%clk 0:01:14]} 25. gxh6 {[%clk 0:00:37]}  Rxh6 {[%clk 0:01:15]} 26. f5 {[%clk 0:00:34]}  Rh7 {[%clk 0:00:45]} 27. Ne6 {[%clk 0:00:27]}  bxc3 {[%clk 0:00:45]} 28. Qxc4 {[%clk 0:00:23]}  cxb2+ {[%clk 0:00:42]} 29. Ka2 {[%clk 0:00:23]}  b1=Q+ {[%clk 0:00:42]} 30. Rxb1 {[%clk 0:00:23]}  dxc4 {[%clk 0:00:42]} 31. Ng5+ {[%clk 0:00:18]}  Kf6 {[%clk 0:00:32]} 32. Nxe4+ {[%clk 0:00:17]}  Kxf5 {[%clk 0:00:31]} 33. Ng3+ {[%clk 0:00:14]}  Ke6 {[%clk 0:00:31]} 34. Rbd1 {[%clk 0:00:00]}  Rh2+ {[%clk 0:00:29]} 0-1

[Event "January 2 Early 2024"]
[Site "https://www.chess.com"]
[Date "2024.01.02"]
[Round "2"]
[White "Movahed, Sina"]
[Black "Domingo Nunez, Alejandro"]
[Result "0-1"]
[Board "20"]
[TimeControl "180+1"]
[WhiteFideId "42520835"]
[BlackFideId "22245561"]
[WhiteElo "3013"]
[BlackElo "2647"]
[WhiteTeam "IRI"]
[BlackTeam "ESP"]
[WhiteClock "0:00:00"]
[BlackClock "0:00:19"]

1. e4 {[%clk 0:03:00]}  g6 {[%clk 0:02:59]} 2. d4 {[%clk 0:03:00]}  Bg7 {[%clk 0:03:00]} 3. Nc3 {[%clk 0:03:00]}  c6 {[%clk 0:03:01]} 4. f4 {[%clk 0:02:26]}  d5 {[%clk 0:03:01]} 5. e5 {[%clk 0:02:21]}  Nh6 {[%clk 0:03:00]} 6. Nf3 {[%clk 0:02:00]}  f6 {[%clk 0:02:58]} 7. Bd3 {[%clk 0:01:58]}  O-O {[%clk 0:02:57]} 8. O-O {[%clk 0:01:58]}  Bg4 {[%clk 0:02:56]} 9. Qe1 {[%clk 0:01:53]}  Bxf3 {[%clk 0:02:52]} 10. Rxf3 {[%clk 0:01:54]}  fxe5 {[%clk 0:02:52]} 11. dxe5 {[%clk 0:01:47]}  c5 {[%clk 0:02:40]} 12. b3 {[%clk 0:01:38]}  e6 {[%clk 0:02:22]} 13. Ba3 {[%clk 0:01:31]}  b6 {[%clk 0:02:14]} 14. Rd1 {[%clk 0:01:30]}  Qe7 {[%clk 0:02:09]} 15. Ne2 {[%clk 0:01:19]}  Nc6 {[%clk 0:02:05]} 16. c3 {[%clk 0:01:15]}  Qc7 {[%clk 0:01:56]} 17. b4 {[%clk 0:01:09]}  Ne7 {[%clk 0:01:47]} 18. h3 {[%clk 0:00:59]}  Nf7 {[%clk 0:01:17]} 19. h4 {[%clk 0:00:52]}  Nh6 {[%clk 0:01:12]} 20. h5 {[%clk 0:00:51]}  Nef5 {[%clk 0:00:48]} 21. hxg6 {[%clk 0:00:48]}  hxg6 {[%clk 0:00:49]} 22. Rh3 {[%clk 0:00:35]}  Rad8 {[%clk 0:00:24]} 23. Ng3 {[%clk 0:00:26]}  d4 {[%clk 0:00:22]} 24. bxc5 {[%clk 0:00:24]}  Ne3 {[%clk 0:00:21]} 25. cxb6 {[%clk 0:00:19]}  Qc6 {[%clk 0:00:18]} 26. Be4 {[%clk 0:00:18]}  Qxb6 {[%clk 0:00:18]} 27. Bxf8 {[%clk 0:00:15]}  Nxd1 {[%clk 0:00:17]} 28. Bxg7 {[%clk 0:00:16]}  dxc3+ {[%clk 0:00:18]} 29. Kh2 {[%clk 0:00:16]}  Ng4+ {[%clk 0:00:18]} 30. Kh1 {[%clk 0:00:11]}  Ndf2+ {[%clk 0:00:18]} 31. Qxf2 {[%clk 0:00:08]}  Nxf2+ {[%clk 0:00:18]} 32. Kh2 {[%clk 0:00:00]}  Nxh3 {[%clk 0:00:19]} 0-1

[Event "January 2 Early 2024"]
[Site "https://www.chess.com"]
[Date "2024.01.02"]
[Round "2"]
[White "Kuzhylnyi, Oleksandr"]
[Black "Pap, Gyula"]
[Result "1-0"]
[Board "24"]
[TimeControl "180+1"]
[WhiteFideId "34110500"]
[BlackFideId "725323"]
[WhiteElo "2639"]
[BlackElo "3001"]
[WhiteTeam "UKR"]
[BlackTeam "HUN"]
[WhiteClock "0:00:42"]
[BlackClock "0:00:00"]

1. d4 {[%clk 0:03:00]}  Nc6 {[%clk 0:02:59]} 2. e4 {[%clk 0:02:59]}  d6 {[%clk 0:02:59]} 3. Nc3 {[%clk 0:02:57]}  Nf6 {[%clk 0:02:59]} 4. Bb5 {[%clk 0:02:50]}  a6 {[%clk 0:02:55]} 5. Bxc6+ {[%clk 0:02:50]}  bxc6 {[%clk 0:02:55]} 6. Nf3 {[%clk 0:02:50]}  g6 {[%clk 0:02:55]} 7. O-O {[%clk 0:02:47]}  Bg7 {[%clk 0:02:55]} 8. h3 {[%clk 0:02:46]}  O-O {[%clk 0:02:54]} 9. Re1 {[%clk 0:02:44]}  a5 {[%clk 0:02:36]} 10. e5 {[%clk 0:02:41]}  Nd5 {[%clk 0:02:35]} 11. Ne4 {[%clk 0:02:41]}  f6 {[%clk 0:02:30]} 12. c4 {[%clk 0:02:30]}  Nb6 {[%clk 0:02:26]} 13. exf6 {[%clk 0:02:28]}  exf6 {[%clk 0:02:26]} 14. b3 {[%clk 0:02:24]}  a4 {[%clk 0:02:18]} 15. Bf4 {[%clk 0:02:20]}  Re8 {[%clk 0:01:48]} 16. Bg3 {[%clk 0:02:12]}  Bf5 {[%clk 0:01:24]} 17. Nc3 {[%clk 0:02:08]}  Rxe1+ {[%clk 0:00:55]} 18. Qxe1 {[%clk 0:02:09]}  axb3 {[%clk 0:00:36]} 19. axb3 {[%clk 0:02:10]}  Rxa1 {[%clk 0:00:37]} 20. Qxa1 {[%clk 0:02:11]}  Qa8 {[%clk 0:00:37]} 21. Qxa8+ {[%clk 0:01:46]}  Nxa8 {[%clk 0:00:37]} 22. d5 {[%clk 0:01:46]}  c5 {[%clk 0:00:22]} 23. Bf4 {[%clk 0:01:39]}  Bc2 {[%clk 0:00:21]} 24. Nd2 {[%clk 0:01:37]}  f5 {[%clk 0:00:21]} 25. Nb5 {[%clk 0:01:35]}  Kf7 {[%clk 0:00:20]} 26. Kf1 {[%clk 0:01:35]}  Bd3+ {[%clk 0:00:20]} 27. Ke1 {[%clk 0:01:35]}  Ke8 {[%clk 0:00:21]} 28. Kd1 {[%clk 0:01:22]}  Kd7 {[%clk 0:00:20]} 29. h4 {[%clk 0:01:18]}  Nb6 {[%clk 0:00:20]} 30. Na3 {[%clk 0:01:13]}  c6 {[%clk 0:00:20]} 31. dxc6+ {[%clk 0:01:12]}  Kxc6 {[%clk 0:00:21]} 32. g3 {[%clk 0:01:10]}  d5 {[%clk 0:00:21]} 33. cxd5+ {[%clk 0:01:10]}  Kxd5 {[%clk 0:00:20]} 34. Nc2 {[%clk 0:01:07]}  Kc6 {[%clk 0:00:15]} 35. Ne3 {[%clk 0:01:06]}  Kb5 {[%clk 0:00:15]} 36. Bd6 {[%clk 0:01:03]}  Bd4 {[%clk 0:00:14]} 37. Nf3 {[%clk 0:01:01]}  Bc3 {[%clk 0:00:12]} 38. Ne5 {[%clk 0:00:59]}  Bf1 {[%clk 0:00:03]} 39. Nxf1 {[%clk 0:00:58]}  Bd4 {[%clk 0:00:02]} 40. Ne3 {[%clk 0:00:57]}  Bxe3 {[%clk 0:00:01]} 41. fxe3 {[%clk 0:00:57]}  Nd5 {[%clk 0:00:02]} 42. Ke2 {[%clk 0:00:54]}  Nc3+ {[%clk 0:00:02]} 43. Kf3 {[%clk 0:00:53]}  Ne4 {[%clk 0:00:03]} 44. Be7 {[%clk 0:00:52]}  Nd2+ {[%clk 0:00:03]} 45. Ke2 {[%clk 0:00:42]}  Nxb3 {[%clk 0:00:04]} 46. Nd7 {[%clk 0:00:42]}  c4 {[%clk 0:00:00]} 47. Nf8 {[%clk 0:00:42]} 1-0

[Event "January 2 Early 2024"]
[Site "https://www.chess.com"]
[Date "2024.01.02"]
[Round "2"]
[White "Drygalov, Sergey"]
[Black "Yagupov, Igor"]
[Result "1-0"]
[Board "36"]
[TimeControl "180+1"]
[WhiteFideId "24171743"]
[BlackFideId "4113632"]
[WhiteElo "2945"]
[BlackElo "2620"]
[WhiteTeam "RUS"]
[BlackTeam "RUS"]
[WhiteClock "0:00:10"]
[BlackClock "0:00:00"]

1. d4 {[%clk 0:03:00]}  d5 {[%clk 0:02:59]} 2. c4 {[%clk 0:03:01]}  c6 {[%clk 0:02:58]} 3. Nf3 {[%clk 0:03:00]}  Nf6 {[%clk 0:02:58]} 4. Nc3 {[%clk 0:03:00]}  e6 {[%clk 0:02:59]} 5. e3 {[%clk 0:03:01]}  Nbd7 {[%clk 0:02:56]} 6. Qc2 {[%clk 0:03:01]}  Bd6 {[%clk 0:02:55]} 7. Bd3 {[%clk 0:03:02]}  O-O {[%clk 0:02:54]} 8. O-O {[%clk 0:03:00]}  dxc4 {[%clk 0:02:55]} 9. Bxc4 {[%clk 0:02:59]}  b5 {[%clk 0:02:55]} 10. Be2 {[%clk 0:02:59]}  a6 {[%clk 0:02:55]} 11. Ng5 {[%clk 0:02:59]}  h6 {[%clk 0:02:46]} 12. Nge4 {[%clk 0:02:58]}  Be7 {[%clk 0:02:46]} 13. a4 {[%clk 0:02:52]}  Bb7 {[%clk 0:02:44]} 14. Rd1 {[%clk 0:02:39]}  Qb6 {[%clk 0:02:42]} 15. Bd2 {[%clk 0:02:29]}  Rac8 {[%clk 0:02:31]} 16. Rac1 {[%clk 0:02:24]}  Nxe4 {[%clk 0:02:14]} 17. Nxe4 {[%clk 0:02:23]}  c5 {[%clk 0:02:14]} 18. Qd3 {[%clk 0:02:18]}  c4 {[%clk 0:02:12]} 19. Qb1 {[%clk 0:02:18]}  Rfd8 {[%clk 0:02:05]} 20. Bf3 {[%clk 0:02:16]}  Nf6 {[%clk 0:02:00]} 21. Nxf6+ {[%clk 0:02:13]}  Bxf6 {[%clk 0:01:59]} 22. Bxb7 {[%clk 0:02:13]}  Qxb7 {[%clk 0:02:00]} 23. Bb4 {[%clk 0:02:13]}  Be7 {[%clk 0:01:59]} 24. Bxe7 {[%clk 0:02:13]}  Qxe7 {[%clk 0:01:58]} 25. axb5 {[%clk 0:02:13]}  axb5 {[%clk 0:01:57]} 26. Qe4 {[%clk 0:02:14]}  Qb4 {[%clk 0:01:51]} 27. Rc2 {[%clk 0:02:13]}  Qb3 {[%clk 0:01:48]} 28. Rdc1 {[%clk 0:02:13]}  Rd5 {[%clk 0:01:44]} 29. h3 {[%clk 0:02:13]}  b4 {[%clk 0:01:42]} 30. Ra1 {[%clk 0:02:04]}  Rdd8 {[%clk 0:01:33]} 31. Ra7 {[%clk 0:02:01]}  c3 {[%clk 0:01:27]} 32. bxc3 {[%clk 0:02:00]}  Rxc3 {[%clk 0:01:19]} 33. Rca2 {[%clk 0:01:59]}  Rc1+ {[%clk 0:01:10]} 34. Kh2 {[%clk 0:01:58]}  Qd5 {[%clk 0:01:09]} 35. Qxd5 {[%clk 0:01:56]}  Rxd5 {[%clk 0:01:09]} 36. Rb7 {[%clk 0:01:56]}  Rb1 {[%clk 0:01:07]} 37. Ra8+ {[%clk 0:01:40]}  Kh7 {[%clk 0:01:06]} 38. Rxf7 {[%clk 0:01:23]}  Rf5 {[%clk 0:01:04]} 39. Rxf5 {[%clk 0:01:22]}  exf5 {[%clk 0:01:04]} 40. Rb8 {[%clk 0:01:22]}  g5 {[%clk 0:01:04]} 41. Rb6 {[%clk 0:01:21]}  h5 {[%clk 0:00:53]} 42. Kg3 {[%clk 0:01:21]}  h4+ {[%clk 0:00:52]} 43. Kf3 {[%clk 0:01:21]}  Kg7 {[%clk 0:00:53]} 44. d5 {[%clk 0:01:03]}  Rd1 {[%clk 0:00:49]} 45. Rb5 {[%clk 0:01:00]}  Kf6 {[%clk 0:00:42]} 46. Ke2 {[%clk 0:00:38]}  Rb1 {[%clk 0:00:41]} 47. f4 {[%clk 0:00:39]}  gxf4 {[%clk 0:00:38]} 48. exf4 {[%clk 0:00:39]}  Rb2+ {[%clk 0:00:38]} 49. Kf3 {[%clk 0:00:36]}  Rb3+ {[%clk 0:00:37]} 50. Kf2 {[%clk 0:00:36]}  Rb2+ {[%clk 0:00:38]} 51. Ke3 {[%clk 0:00:31]}  Rxg2 {[%clk 0:00:34]} 52. Rxb4 {[%clk 0:00:23]}  Rg3+ {[%clk 0:00:33]} 53. Kd4 {[%clk 0:00:23]}  Rxh3 {[%clk 0:00:31]} 54. Rb6+ {[%clk 0:00:24]}  Ke7 {[%clk 0:00:24]} 55. Ke5 {[%clk 0:00:22]}  Re3+ {[%clk 0:00:21]} 56. Kxf5 {[%clk 0:00:23]}  h3 {[%clk 0:00:19]} 57. Rh6 {[%clk 0:00:23]}  Kf7 {[%clk 0:00:15]} 58. d6 {[%clk 0:00:22]}  Kg7 {[%clk 0:00:13]} 59. Rh4 {[%clk 0:00:16]}  Rd3 {[%clk 0:00:08]} 60. Ke6 {[%clk 0:00:16]}  Re3+ {[%clk 0:00:08]} 61. Kd7 {[%clk 0:00:16]}  Rf3 {[%clk 0:00:07]} 62. Kd8 {[%clk 0:00:14]}  Kf7 {[%clk 0:00:06]} 63. d7 {[%clk 0:00:14]}  Rc3 {[%clk 0:00:06]} 64. Rh7+ {[%clk 0:00:13]}  Kg8 {[%clk 0:00:00]} 65. Ke8 {[%clk 0:00:10]} 1-0